Cogmind - Beta 13 @@@ ROGUE MODE // 2024.04.12 @ 23:39:52 Player: zoefiri Result: Destroyed by D-53 Grenadier with Mini Grenade Launcher Performance ------------- Evolutions (0) 0 Regions Visited (2) 400 Robots Destroyed (11) 55 Value Destroyed (360) 360 Prototype IDs (0) 0 Alien Tech Used (0) 0 Bonus (0) 0 TOTAL SCORE: 815 Bonus ------- None Cogmind --------- Core Integrity 0/250 Matter 294/300 Energy 98/100 System Corruption 0% Temperature Cool (0) Movement Core (50) Location -10/Mines Parts ------- > --- POWER (1) -------- (None) > --- PROPULSION (2) --- (None) > --- UTILITY (2) ------ Terrain Scan Processor > --- WEAPON (2) ------- (None) > --- INVENTORY (5) ---- Flight Unit EM Pulse Gun Medium Laser Small Laser Grenade Launcher Peak State ------------ > --- POWER ------------ Ion Engine > --- PROPULSION ------- Light Treads Light Treads > --- UTILITY ---------- Medium Storage Unit Terrain Scan Processor > --- WEAPON ----------- Medium Laser Particle Gun > --- INVENTORY -------- Light Ion Engine Light Ion Engine Flight Unit Heat Sink Small Storage Unit EM Pulse Gun Small Laser Particle Gun Grenade Launcher [Rating: 10] Favorites ----------- Power Light Ion Engine Engine Light Ion Engine Propulsion Light Treads Treads Light Treads Utility Medium Storage Unit Storage Medium Storage Unit Processor Terrain Scan Processor Weapon EM Pulse Gun Energy Gun EM Pulse Gun Launcher Grenade Launcher Build | -11 -10 -10 ------- Run | Yrd Mat Min Slots Evolved . | . . . Power . | . . . Propulsion . | . . . Utility . | . . . Weapon . | . . . Parts Attached 15 | 6 3 6 Power 3 | 1 1 1 Engine 3 | 1 1 1 Core . | . . . Reactor . | . . . Propulsion 2 | 2 . . Treads 2 | 2 . . Leg . | . . . Wheel . | . . . Hover . | . . . Flight . | . . . Utility 3 | 1 2 . Device . | . . . Storage 2 | 1 1 . Processor 1 | . 1 . Hackware . | . . . Protection . | . . . Artifact . | . . . Weapon 7 | 2 . 5 Energy Gun 6 | 2 . 4 Energy Cannon . | . . . Ballistic Gun . | . . . Ballistic Cannon . | . . . Launcher 1 | . . 1 Special Weapon . | . . . Impact Weapon . | . . . Slashing Weapon . | . . . Piercing Weapon . | . . . Special Melee Weapon . | . . . Unidentified Prototypes . | . . . Parts Lost 6 | . . 6 Power 2 | . . 2 Propulsion 2 | . . 2 Utility . | . . . Weapon 2 | . . 2 Highest Loss Streak 5 | . . 5 To Critical Strikes . | . . . Average Slot Usage (%) 93 | . 88 97 Engine 12 | . 14 12 Treads 27 | . 28 27 Storage 14 | . 14 14 Processor 8 | . 3 14 Energy Gun 24 | . 28 21 Launcher 3 | . . 6 Naked Turns . | . . . Heaviest Build 21 | 11 16 21 Greatest Support 40 | 40 40 40 Greatest Overweight (x) 1 | . . 1 Average Overweight (x) . | . . . Largest Inventory Capacity 10 | 8 10 10 Average Capacity 9 | 7 9 9 Most Carried 9 | 2 8 9 Average Carried 6 | . 5 8 Final Capacity 10 | 8 10 10 Final Carried 8 | 2 8 8 Class Distribution -------------------- 80% | Mutant 19% | Scavenger-Mutant Dominant Class ---------------- Mutant | -10/Materials Mutant | -10/Mines Resources | -11 -10 -10 ----------- Run | Yrd Mat Min Matter Collected 375 | 98 152 125 Remotely . | . . . Salvage Created 387 | . 171 216 Parts 17 | . 11 6 Haulers Intercepted . | . . . Recyclers Shooed 1 | . . 1 Parts Field Recycled . | . . . Retrieved Matter . | . . . Parts Self-Destructed . | . . . Prevented . | . . . Kills | -11 -10 -10 ------- Run | Yrd Mat Min Combat Hostiles Destroyed 9 | . 3 6 Guns 4 | . 2 2 AOE 3 | . . 3 Classes Destroyed 2 | . 2 . Worker 2 | . 2 . Grunt 9 | . 3 6 Best Kill Streak 4 | . 4 4 Combat Bots Only 4 | . 2 4 Max Kills in Single Turn 2 | . 2 1 Gunslinging . | . . . Exploded 1 | . . 1 Melee . | . . . Uniques/NPCs Destroyed . | . . . Combat | -11 -10 -10 -------- Run | Yrd Mat Min Hostile Shots Fired 55 | . 22 33 Missed 13 | . 6 7 Damage Taken 896 | . 229 667 Core 277 | . 18 259 Absorbed by Shields . | . . . Core Remaining (%) 100 | 100 . . Volleys Fired 35 | . 16 19 Largest 2 | . 2 2 Hottest 115 | . 80 115 Shots Fired 59 | . 32 27 Gun 52 | . 32 20 Cannon . | . . . Launcher 7 | . . 7 Special . | . . . Kinetic . | . . . Thermal 18 | . 16 2 Explosive 7 | . . 7 Electromagnetic 34 | . 16 18 Robot Hit Streak 8 | . 8 7 Robot Miss Streak 2 | . 1 2 Penetration Max . | . . . Secondary Targets . | . . . Shots Hit Robots 39 | . 22 17 Core Hits 19 | . 9 10 Critical Kills . | . . . Critical Parts Destroyed . | . . . Critical Strikes 4 | . 2 2 Burn 1 | . . 1 Corrupt 3 | . 2 1 Melee Attacks . | . . . Impact . | . . . Slashing . | . . . Piercing . | . . . Sneak Attacks . | . . . Combat Hostiles . | . . . Follow-up Attacks . | . . . Damage Inflicted 914 | . 311 603 Guns 452 | . 271 181 Cannons . | . . . Explosions 458 | . 39 419 Melee . | . . . Ramming 4 | . 1 3 Kinetic . | . . . Thermal 200 | . 141 59 Explosive 375 | . . 375 Electromagnetic 335 | . 169 166 Impact . | . . . Slashing . | . . . Piercing . | . . . Highest Corruption . | . . . Average Corruption . | . . . Corruption Purged . | . . . Corruption Blocked . | . . . Overload Shots . | . . . Overflow Damage . | . . . Projectiles . | . . . Explosions . | . . . Melee . | . . . Knockbacks . | . . . Impact . | . . . Kinetic . | . . . Secondary . | . . . Self-Inflicted Damage 44 | . 39 5 Shots 2 | . 1 1 Rammed 2 | . 1 1 Targets Rammed 2 | . 1 1 Kicked . | . . . Crushed . | . . . Highest Temperature 204 | . 204 63 Average Temperature 60 | . 90 19 Received Heat Transfer 336 | . 108 228 Siege Activations . | . . . Robots Corrupted 2 | . 1 1 Combat Hostiles 2 | . 1 1 Parts Fried 2 | . 1 1 Impact Corruptions . | . . . Robots Melted . | . . . Combat Hostiles . | . . . Parts Melted 1 | . 1 . Heat Transferred 436 | . 275 161 Parts Sabotaged . | . . . Parts Stolen . | . . . Parts Stripped . | . . . Power Chain Reactions 2 | . 1 1 Alert | -11 -10 -10 ------- Run | Yrd Mat Min Peak Influence 250 | . 98 250 Initial 37 | . . 37 Average 85 | . 21 157 Maximum Alert Level 1 | . . 1 Low Security (%) 77 | 100 100 52 Level 1 22 | . . 47 Level 2 . | . . . Level 3 . | . . . Level 4 . | . . . Level 5 . | . . . High Security . | . . . Max Security . | . . . Squads Dispatched . | . . . Investigation . | . . . Extermination . | . . . Reinforcement . | . . . Assault . | . . . Garrison . | . . . Intercept . | . . . Searches Triggered . | . . . Construction Impeded . | . . . Haulers Reinforced . | . . . Active Scanning Responses . | . . . Cargo Convoy Interrupts . | . . . Stealth | -11 -10 -10 --------- Run | Yrd Mat Min Distress Signals . | . . . Communications Jammed . | . . . Distress Signals . | . . . Times Spotted 17 | . 6 11 Peak Tracking Total 5 | . 3 5 Tactical Retreats 3 | . 1 2 Traps | -11 -10 -10 ------- Run | Yrd Mat Min Traps Triggered . | . . . Indirectly . | . . . Trap Hack Attempts . | . . . Triggered . | . . . Disarmed . | . . . Reprogrammed . | . . . Reused . | . . . Traps Extracted . | . . . Installed . | . . . Triggered . | . . . Machines | -11 -10 -10 ---------- Run | Yrd Mat Min Machines Disabled . | . . . Max in Single Turn . | . . . Machines Repaired . | . . . Machines Dismantled . | . . . Machines Sabotaged . | . . . Overloaded Fab Kills . | . . . Hacking | -11 -10 -10 --------- Run | Yrd Mat Min Machines Accessed . | . . . Terminals . | . . . Fabricators . | . . . Repair Stations . | . . . Recycling Units . | . . . Scanalyzers . | . . . Garrison Access . | . . . Total Hacks . | . . . Successful . | . . . Failed . | . . . Catastrophic . | . . . Database Lockouts . | . . . Manual . | . . . Terminals . | . . . Fabricators . | . . . Repair Stations . | . . . Recycling Units . | . . . Scanalyzers . | . . . Garrison Access . | . . . Terminal Hacks . | . . . Fabricator Hacks . | . . . Repair Station Hacks . | . . . Recycling Unit Hacks . | . . . Scanalyzer . | . . . Garrison Access Hacks . | . . . Unauthorized Hacks . | . . . Terminals . | . . . Fabricators . | . . . Repair Stations . | . . . Recycling Units . | . . . Scanalyzers . | . . . Garrison Access . | . . . Data Cores Recovered . | . . . Used . | . . . Hacking Detections . | . . . Full Trace Events . | . . . Feedback Events . | . . . Feedback Blocked . | . . . Robot Schematics Acquired . | . . . Robots Built . | . . . Authchips . | . . . Time . | . . . Total Robot Build Rating . | . . . Part Schematics Acquired . | . . . Parts Built . | . . . Authchips . | . . . Time . | . . . Total Part Build Rating . | . . . Parts Repaired . | . . . Time . | . . . Parts Recycled . | . . . Recycled Matter . | . . . Retrieved Matter . | . . . Retrieved Components . | . . . Parts Scanalyzed . | . . . Part Schematics Acquired . | . . . Parts Damaged . | . . . Bothacking | -11 -10 -10 ------------ Run | Yrd Mat Min Used RIF Installer . | . . . Robots Hacked . | . . . Non-combat . | . . . Combat . | . . . Robot Hacks Applied . | . . . Relay Couplers Released . | . . . Fabnet Peak Effective % . | . . . Robots Rewired . | . . . Allies Hacked . | . . . Hacks Repelled . | . . . Allies | -11 -10 -10 -------- Run | Yrd Mat Min Total Allies . | . . . Largest Group . | . . . Highest-Rated Group . | . . . Highest-Rated Ally . | . . . Total Orders . | . . . Ally Attacks . | . . . Total Damage . | . . . Kills . | . . . Allies Corrupted . | . . . Allies Melted . | . . . Intel | -11 -10 -10 ------- Run | Yrd Mat Min Robot Analysis Total . | . . . Derelict Logs Recovered 1 | . . 1 Drone Launches . | . . . Drone Recoveries . | . . . Exploration | -11 -10 -10 ------------- Run | Yrd Mat Min Turns Passed 747 | 75 312 360 Spaces Moved 376 | 43 142 191 Core 12 | 3 . 9 Treads 364 | 40 142 182 Legs . | . . . Wheels . | . . . Hover . | . . . Flight . | . . . Fastest Speed 50 | 50 160 50 Average Speed 157 | 152 160 156 Slowest Speed 160 | 160 160 160 Overloaded Moves . | . . . Propulsion Burnouts . | . . . Robots Hopped . | . . . Cave-ins Triggered . | . . . Exploration Rate (%) 30 | 5 30 56 Regions Visited 2 Branch Regions 1 Pre-discovered Areas 1 | . . 1 Known Exits Taken . | . . . Unknown Exits Taken 2 | 1 1 . Scrap Searched . | . . . Spaces Dug . | . . . Terrain Destroyed 61 | . 2 59 Melee . | . . . Projectile . | . . . AOE 61 | . 2 59 Terrain Rammed . | . . . Walls Destroyed . | . . . Machines Disabled . | . . . Actions | -11 -10 -10 --------- Run | Yrd Mat Min Total 466 | 50 193 223 Wait 30 | . 27 3 Move 374 | 42 141 191 Hop . | . . . Pick Up 7 | 2 4 1 Fast Attach 9 | 6 2 1 Attach . | . . . Detach 1 | . 1 . Swap 6 | . 1 5 Drop 2 | . . 2 Fire 35 | . 16 19 Melee . | . . . Ram . | . . . Kick . | . . . Crush 2 | . 1 1 Escape Stasis . | . . . Rewire . | . . . Trap . | . . . Miscellaneous . | . . . Route ------- -11/Scrapyard -10/Materials -10/Mines (discovered 1 exit: [*Mat]) History --------- Turn | Location | Event 45 | -11/Scrapyard | Discovered new exit (range 12) 76 | -11/Scrapyard | Entered Materials 236 | -10/Materials | Discovered new exit (range 9) 306 | -10/Materials | Build established: Mutant 388 | -10/Materials | Entered Mines 608 | -10/Mines | Found a hidden stash of uninstalled traps 630 | -10/Mines | Learned location of Mines (-9) 726 | -10/Mines | YI-UF0 nonchalantly dropped a Grenade Launcher on the ground 734 | -10/Mines | Assembled infested the area 739 | -10/Mines | Assisted by a Guerilla fighting off Assembled 741 | -10/Mines | Core integrity fell below 50% 745 | -10/Mines | Core integrity fell below 20% 746 | -10/Mines | Discovered new exit (range 16) 748 | -10/Mines | Destroyed by D-53 Grenadier with Mini Grenade Launcher Last Messages --------------- A derelict emerges from the shadows: "You need to get out of here! I've been tracking a group of Assembled to figure out where they're coming from, and they're closing on this area, come on!" ZO-S9H(h): "I'll hold them off! Go on ahead or try to find another way!" HV Slug penetrates Wall. Lgt. Treads destroyed. K-01 Serf destroyed. YI-UF0: "Whaaaaaaaa!" Dropped Med. Storage Unit. D-53 Grenadier suffers critical hit (Destroy). The unstable cave ceiling collapses. ZO-S9H(h) destroyed. The unstable cave ceiling collapses. EXIT=FOUND Particle Gun destroyed. D-53 Grenadier destroyed. Particle Gun destroyed. Map ----- +----------------------------------------------------+ | ????????????????????????????????? | | ????????????????????????????????? | | ????????????????????????????????? | | ????????????????????????????????? | | ????????????????????????????????? | | ????????????????????????????????? | | ????????????????????????????????? | | ????????????????????????????????? | | ????????????????????????????????? | | ????????????????????????????????? | | ???????????????????????# ?????? | | ?????????????????????## ?????? | | ????????????????????# ?????? | | ????????????????????# < ###??? | | ????????????????????# # ??? | | ????????????????????# % ##?? | | ????????????????????# #?? | | ????????????????##### #?? | | ????????????????# # ##? | | ????????????????? d #? | | ?????????????????? ?? | | ???????????????????# ??? | | ????????????????????# #??? | | ???????????????????### #??? | | ?????????????????### #???? | | ???????????####### @ ##??? | | ?????????? ##?? | | ?????????????##### #?? | | ????????????####### g #?? | | ????????????# ! #?? | | ????????????# ! #?? | | ????????????# """ * #?? | | ????????????? """ #?? | | ????????????? """ ### ]# ###?? | | ????????????? ### # #???? | | ????????????########## # #???? | | ?????????????###### ###???? | | ?????????????# ##????? | | ?????????????# ### #????? | | ?????????????????# #???? | | ?????????????????# ##### #???? | | ?????????????????# #???## #???? | | ?????????????????# #?????# #???? | | ?????????????????# #?####?###???? | | ##???????????????# ### ##??????? | | #####???????????# ## ##?????? | | # ## #### #?### # ##????? | | ???# #????? | | ###????????# #### ## #????? | | #?????????# ???##### #????? | +----------------------------------------------------+ Best States ------------- Heat Dissipation 25 Energy Generation 10 Energy Capacity 250 Matter Stores 298 Matter Capacity 300 Sight Range 16 Terrain Scan Density 85 Evasion (%) 40 Recoil Reduction 2 Item Schematics ----------------- None Robot Schematics ------------------ None Fabricated ------------ Nothing Alien Tech Used ----------------- None Achievements -------------- None Challenges ------------ None Game ------ Seed StorageSuspensionRouter Manual? 0 Play Time 00:08:42 Cumulative 10.4 hours Start 2024.04.12 @ 23:12:50 End 2024.04.12 @ 23:39:52 Sessions 1 Manual Loads 0 Difficulty Rogue Special Mode None Game No. 17 Rogue 14 Adventurer 0 Explorer 3 Win Type - Total 0 Types 0/0/0/0/0/0/0/0/0 Lore% 12 Gallery% 20 Achievement% 17 Wizard Run 0 Options --------- Layout 1 ASCII 0 Keyboard 0 Movement Arrows Keybinds 0 Fullscreen 0 Font 28/SmallcapsGlow Map View 50x43 Zoom Use 0% Tactical HUD 0 Map Filters NONE Filters NONE Steam 1 RUN: e4d1f4d7-729c-4576-9cc7-78649d8371d9